Cogmind - Beta 15 @@@ ROGUE MODE // 2025.08.29 @ 17:07:39 Player: opaguck Result: Destroyed by S-10 Pest with Light Assault Rifle Performance ------------- Evolutions (1) 500 Regions Visited (3) 600 Robots Destroyed (7) 35 Value Destroyed (113) 113 Prototype IDs (0) 0 Alien Tech Used (0) 0 Bonus (0) 0 TOTAL SCORE: 1248 Bonus ------- None Cogmind --------- Core Integrity 0/400 Matter 269/300 Energy 98/100 System Corruption 0% Temperature Cool (0) Movement Core (50) Location -9/Mines Parts ------- > --- POWER (1) -------- (None) > --- PROPULSION (4) --- (None) > --- UTILITY (2) ------ (None) > --- WEAPON (2) ------- (None) > --- INVENTORY (5) ---- Datajack Datajack Peak State ------------ > --- POWER ------------ Light Ion Engine > --- PROPULSION ------- Aluminum Leg Aluminum Leg > --- UTILITY ---------- Improved Terrain Scanner ECM Suite > --- WEAPON ----------- EM Pulse Cannon EM Pulse Cannon > --- INVENTORY -------- Compact Wheel Compact Wheel Medium Laser Medium Laser [Rating: 13] Favorites ----------- Power Light Ion Engine Engine Light Ion Engine Propulsion Aluminum Leg Leg Aluminum Leg Wheel Compact Wheel Utility ECM Suite Device ECM Suite Weapon Medium Laser Energy Gun Medium Laser Energy Cannon EM Pulse Cannon Special Melee Weapon Datajack Build | -11 -10 -9 -9 ------- Run | Yrd Mat Mat Min Slots Evolved 2 | . . 2 . Power . | . . . . Propulsion 2 | . . 2 . Utility . | . . . . Weapon . | . . . . Parts Attached 19 | 6 6 6 1 Power 3 | 1 1 1 . Engine 3 | 1 1 1 . Core . | . . . . Reactor . | . . . . Propulsion 6 | 2 2 2 . Treads . | . . . . Leg 4 | 2 2 . . Wheel 2 | . . 2 . Hover . | . . . . Flight . | . . . . Utility 3 | 1 1 1 . Device 3 | 1 1 1 . Storage . | . . . . Processor . | . . . . Hackware . | . . . . Protection . | . . . . Artifact . | . . . . Weapon 7 | 2 2 2 1 Energy Gun 4 | 2 2 . . Energy Cannon 2 | . . 2 . Ballistic Gun . | . . . . Ballistic Cannon . | . . . . Launcher . | . . . . Special Weapon . | . . . . Impact Weapon . | . . . . Slashing Weapon . | . . . . Piercing Weapon . | . . . . Special Melee Weapon 1 | . . . 1 Unidentified Prototypes . | . . . . Parts Lost 15 | . 5 5 5 Power 2 | . 1 1 . Propulsion 5 | . 2 1 2 Utility 3 | . 1 1 1 Weapon 5 | . 1 2 2 Highest Loss Streak 5 | . 2 4 5 To Critical Strikes . | . . . . Average Backups 2 | 3 3 2 2 Power . | . 1 . . Propulsion 1 | 1 2 1 . Utility . | . . . . Weapon . | . . . . Tool/Special . | . . . . Unused Backups 1 | 1 . . . Power . | . . . . Propulsion . | . . . . Utility 1 | 1 . . . Weapon . | . . . . Tool/Special . | . . . . Average Slot Usage (%) 70 | . 88 68 38 Engine 10 | . 14 10 . Leg 19 | . 27 19 . Wheel 2 | . . 2 12 Device 14 | . 18 14 9 Energy Gun 18 | . 28 15 11 Energy Cannon 3 | . . 5 . Peak Build Rating 13 | 6 7 13 5 Average Rating 6 | 3 6 7 3 On Entrance 3 | . 6 5 3 Naked Turns 20 | . . . 20 Heaviest Build 18 | 8 12 18 6 Greatest Support 32 | 20 20 32 32 Greatest Overweight (x) 1 | . 1 1 1 Average Overweight (x) . | . . . . Largest Inventory Capacity 5 | 5 5 5 5 Average Capacity 5 | 5 5 5 5 Most Carried 5 | 5 5 5 3 Average Carried 2 | 3 3 2 2 Final Capacity 5 | 5 5 5 5 Final Carried 4 | 4 3 4 2 Class Distribution -------------------- 96% | Mutant 3% | Scavenger-Mutant Dominant Class ---------------- Mutant | -10/Materials Mutant | -9/Materials Mutant | -9/Mines Resources | -11 -10 -9 -9 ----------- Run | Yrd Mat Mat Min Matter Collected 314 | 260 35 19 . Remotely . | . . . . Salvage Created 206 | 71 116 19 . Parts 16 | 9 5 2 . Haulers Intercepted . | . . . . Recyclers Shooed . | . . . . Parts Field Recycled . | . . . . Retrieved Matter . | . . . . Parts Self-Destructed . | . . . . Prevented . | . . . . Kills | -11 -10 -9 -9 ------- Run | Yrd Mat Mat Min Combat Hostiles Destroyed 2 | . 2 . . Guns 2 | . 2 . . Classes Destroyed 4 | 2 1 1 . Worker 2 | 1 1 . . Tunneler 2 | 2 . . . Watcher 1 | . . 1 . Grunt 2 | . 2 . . Best Kill Streak 2 | 2 1 1 . Combat Bots Only 1 | . 1 . . Max Kills in Single Turn 1 | 1 1 1 . Gunslinging . | . . . . Exploded . | . . . . Melee . | . . . . Uniques/NPCs Destroyed . | . . . . Combat | -11 -10 -9 -9 -------- Run | Yrd Mat Mat Min Hostile Shots Fired 218 | . 70 56 92 Missed 66 | . 18 20 28 Hits 152 | . 52 36 64 Projectile 152 | . 52 36 64 Critical Strikes 3 | . 2 . 1 Damage Taken 1591 | . 742 328 521 Core 548 | . 140 41 367 Absorbed by Shields . | . . . . Core Remaining (%) 72 | 100 44 . . Volleys Fired 44 | 8 26 1 9 Largest 2 | 2 2 2 2 Hottest 126 | 100 100 126 100 Shots Fired 65 | 16 36 2 11 Gun 63 | 16 36 . 11 Cannon 2 | . . 2 . Launcher . | . . . . Special . | . . . . Kinetic . | . . . . Thermal 63 | 16 36 . 11 Explosive . | . . . . Electromagnetic 2 | . . 2 . Robot Hit Streak 4 | 4 3 1 2 Robot Miss Streak 5 | 2 5 . 3 Penetration Max . | . . . . Secondary Targets 1 | . 1 . . Max Gunslinging Chain 1 | . 1 . . Shots Hit Robots 29 | 9 14 1 5 Core Hits 11 | 4 6 1 . Critical Kills . | . . . . Critical Parts Destroyed . | . . . . Critical Strikes 3 | 1 1 . 1 Burn 3 | 1 1 . 1 Melee Attacks . | . . . . Impact . | . . . . Slashing . | . . . . Piercing . | . . . . Sneak Attacks . | . . . . Combat Hostiles . | . . . . Follow-up Attacks . | . . . . Damage Inflicted 414 | 123 188 42 61 Guns 372 | 123 188 . 61 Cannons 42 | . . 42 . Explosions . | . . . . Melee . | . . . . Ramming . | . . . . Kinetic . | . . . . Thermal 372 | 123 188 . 61 Explosive . | . . . . Electromagnetic 42 | . . 42 . Impact . | . . . . Slashing . | . . . . Piercing . | . . . . Highest Corruption . | . . . . Average Corruption . | . . . . Corruption Purged . | . . . . Corruption Blocked . | . . . . Overload Shots . | . . . . Overflow Damage . | . . . . Projectiles . | . . . . Explosions . | . . . . Melee . | . . . . Knockbacks . | . . . . Impact . | . . . . Kinetic . | . . . . Secondary . | . . . . Self-Inflicted Damage . | . . . . Shots . | . . . . Rammed . | . . . . Targets Rammed . | . . . . Kicked . | . . . . Crushed . | . . . . Highest Temperature 337 | 234 337 57 15 Average Temperature 147 | 103 178 31 10 Received Heat Transfer 489 | . 462 27 . Effects 6 | . 6 . . Energy Bleed 1 | . 1 . . Interference 5 | . 5 . . Siege Activations . | . . . . Martial Activations . | . . . . Shielding Activations . | . . . . Robots Disrupted . | . . . . Combat Hostiles . | . . . . Robots Corrupted . | . . . . Combat Hostiles . | . . . . Parts Fried . | . . . . Impact Corruptions . | . . . . Robots Melted . | . . . . Combat Hostiles . | . . . . Parts Melted . | . . . . Heat Transferred 1332 | 444 629 . 259 Parts Sabotaged . | . . . . Parts Stolen . | . . . . Parts Stripped . | . . . . Power Chain Reactions . | . . . . Alert | -11 -10 -9 -9 ------- Run | Yrd Mat Mat Min Maximum Alert Level . | . . . . Low Security (%) 100 | 100 100 100 100 Level 1 . | . . . . Level 2 . | . . . . Level 3 . | . . . . Level 4 . | . . . . Level 5 . | . . . . High Security . | . . . . Max Security . | . . . . Peak Influence 30 | 10 30 7 15 Initial 3 | . 3 . . Average 1 | . 4 . . Influence Increases 100 | 15 63 7 15 Destroy 0b10 Robot/C 40 | . 40 . . Destroy 0b10 Robot/NC 25 | 15 5 5 . Destroy Leader 12 | . 10 2 . Successful Hack 8 | . 8 . . Lose Combat Pursuer 15 | . . . 15 Influence Decreases 100 | 10 68 7 15 Entered New Map 2 | . 2 . . Time Decay 88 | 10 66 7 5 Lost Part 10 | . . . 10 Squads Dispatched 2 | . . 2 . Investigation 1 | . . 1 . Extermination . | . . . . Reinforcement 1 | . . 1 . Assault . | . . . . Garrison . | . . . . Intercept . | . . . . Searches Triggered . | . . . . Construction Impeded . | . . . . Haulers Reinforced . | . . . . Active Scanning Responses . | . . . . Cargo Convoy Interrupts . | . . . . Stealth | -11 -10 -9 -9 --------- Run | Yrd Mat Mat Min Distress Signals 2 | . 1 1 . Communications Jammed . | . . . . Distress Signals . | . . . . Times Spotted 28 | . 9 10 9 Peak Tracking Total 6 | . 4 5 6 Tactical Retreats 8 | . 2 4 2 Traps | -11 -10 -9 -9 ------- Run | Yrd Mat Mat Min Traps Triggered . | . . . . Indirectly . | . . . . Trap Hack Attempts . | . . . . Triggered . | . . . . Disarmed 4 | . 4 . . Reprogrammed . | . . . . Reused . | . . . . Traps Extracted . | . . . . Installed . | . . . . Triggered . | . . . . Machines | -11 -10 -9 -9 ---------- Run | Yrd Mat Mat Min Machines Disabled . | . . . . Max in Single Turn . | . . . . Machines Repaired . | . . . . Machines Dismantled . | . . . . Machines Sabotaged . | . . . . Overloaded Fab Kills . | . . . . Hacking | -11 -10 -9 -9 --------- Run | Yrd Mat Mat Min Machines Accessed 3 | . 2 1 . Terminals 3 | . 2 1 . Fabricators . | . . . . Repair Stations . | . . . . Recycling Units . | . . . . Scanalyzers . | . . . . Garrison Access . | . . . . Total Hacks 8 | . 4 4 . Successful 4 | . 4 . . Failed 4 | . . 4 . Catastrophic . | . . . . Database Lockouts . | . . . . Manual . | . . . . Terminals 8 | . 4 4 . Fabricators . | . . . . Repair Stations . | . . . . Recycling Units . | . . . . Scanalyzers . | . . . . Garrison Access . | . . . . Terminal Hacks 4 | . 4 . . Disarm Traps 1 | . 1 . . Maintenance Status 1 | . 1 . . Hauler Manifests 1 | . 1 . . Zone Layout 1 | . 1 . . Fabricator Hacks . | . . . . Repair Station Hacks . | . . . . Recycling Unit Hacks . | . . . . Scanalyzer . | . . . . Garrison Access Hacks . | . . . . Unauthorized Hacks . | . . . . Terminals . | . . . . Fabricators . | . . . . Repair Stations . | . . . . Recycling Units . | . . . . Scanalyzers . | . . . . Garrison Access . | . . . . Data Cores Recovered . | . . . . Used . | . . . . Hacking Detections 1 | . . 1 . Full Trace Events 1 | . . 1 . Feedback Events . | . . . . Feedback Blocked . | . . . . Robot Schematics Acquired . | . . . . Robots Built . | . . . . Authchips . | . . . . Time . | . . . . Total Robot Build Rating . | . . . . Part Schematics Acquired . | . . . . Parts Built . | . . . . Authchips . | . . . . Time . | . . . . Total Part Build Rating . | . . . . Parts Repaired . | . . . . Time . | . . . . Parts Recycled . | . . . . Recycled Matter . | . . . . Retrieved Matter . | . . . . Retrieved Components . | . . . . Parts Scanalyzed . | . . . . Part Schematics Acquired . | . . . . Parts Damaged . | . . . . Bothacking | -11 -10 -9 -9 ------------ Run | Yrd Mat Mat Min Used RIF Installer . | . . . . Robots Hacked . | . . . . Non-combat . | . . . . Combat . | . . . . Robot Hacks Applied . | . . . . Relay Couplers Released . | . . . . Fabnet Peak Effective % . | . . . . Robots Rewired . | . . . . Allies Hacked . | . . . . Hacks Repelled . | . . . . Allies | -11 -10 -9 -9 -------- Run | Yrd Mat Mat Min Total Allies . | . . . . Largest Group . | . . . . Highest-Rated Group . | . . . . Highest-Rated Ally . | . . . . Total Orders . | . . . . Ally Attacks . | . . . . Total Damage . | . . . . Kills . | . . . . Allies Corrupted . | . . . . Allies Melted . | . . . . Intel | -11 -10 -9 -9 ------- Run | Yrd Mat Mat Min Active Infowar (turns) 1067 | 25 270 749 23 Terrain 217 | . . 217 . Seismic 243 | 25 218 . . ECM 892 | . 129 740 23 Robot Analysis Total . | . . . . Derelict Logs Recovered 1 | . . . 1 Drone Launches . | . . . . Drone Recoveries . | . . . . Exploration | -11 -10 -9 -9 ------------- Run | Yrd Mat Mat Min Turns Passed 1253 | 111 270 751 121 Spaces Moved 516 | 61 158 212 85 Core 55 | 4 . . 51 Treads . | . . . . Legs 355 | 57 158 140 . Wheels 106 | . . 72 34 Hover . | . . . . Flight . | . . . . Fastest Speed 50 | 50 120 100 50 Average Speed 110 | 115 120 113 78 Slowest Speed 190 | 120 190 190 100 Overloaded Moves . | . . . . Propulsion Burnouts . | . . . . Robots Hopped . | . . . . Potential Cave-ins . | . . . . Cave-ins Triggered . | . . . . Exploration Rate (%) 21 | 4 39 22 21 Regions Visited 3 Branch Regions 1 Pre-discovered Areas . | . . . . Known Exits Taken . | . . . . Unknown Exits Taken 3 | 1 1 1 . Scrap Searched . | . . . . Spaces Dug . | . . . . Terrain Destroyed . | . . . . Melee . | . . . . Projectile . | . . . . AOE . | . . . . Terrain Rammed . | . . . . Walls Destroyed . | . . . . Machines Disabled . | . . . . Actions | -11 -10 -9 -9 --------- Run | Yrd Mat Mat Min Total 1135 | 86 201 720 128 Wait 532 | . 6 495 31 Move 513 | 60 157 211 85 Hop . | . . . . Pick Up 20 | 11 4 5 . Fast Attach 1 | . 1 . . Attach 18 | 6 5 5 2 Detach 1 | . . 1 . Swap 2 | . . 1 1 Drop 4 | 1 2 1 . Fire 44 | 8 26 1 9 Melee . | . . . . Ram . | . . . . Kick . | . . . . Crush . | . . . . Escape Stasis . | . . . . Rewire . | . . . . Trap . | . . . . Miscellaneous . | . . . . Route ------- -11/Scrapyard -10/Materials -9/Materials -9/Mines History --------- Turn | Location | Event 6 | -11/Scrapyard | Discovered new exit (range 15) 112 | -11/Scrapyard | Entered Materials 333 | -10/Materials | Core integrity fell below 50% 366 | -10/Materials | Discovered new exit (range 9) 382 | -10/Materials | Entered another Materials area 382 | -9/Materials | Evolved 2 slots: Propulsion x2 631 | -9/Materials | Build established: Mutant 1116 | -9/Materials | Discovered new exit (range 16) 1133 | -9/Materials | Entered Mines 1135 | -9/Mines | Learned Materials interactive machine intel 1162 | -9/Mines | Lost 4 parts (1p1u2w) 1234 | -9/Mines | Core integrity fell below 50% 1243 | -9/Mines | Core integrity fell below 20% 1254 | -9/Mines | Destroyed by S-10 Pest with Light Assault Rifle Last Messages --------------- intel. 01185_ Com. Wheel destroyed. 01195_ S-10 Pest suffers critical hit (Burn). 01202_ S-10 Pest heat spikes uncontrollably. 01202_ S-10 Pest overheating. 01210_ S-10 Pest heat damages Flight Unit, Flight Unit, Lgt. Assault Rifle. 01210_ Com. Wheel destroyed. 01222_ Med. Laser destroyed. 01227_ S-10 Pest heat short circuits Lgt. Ion Engine. 01228_ S-10 Pest heat damages Flight Unit. 01228_ S-10 Pest overheating. 01233_ ECM Suite destroyed. 01233_ S-10 Pest overheating. 01234_ Med. Laser destroyed. 01235_ S-10 Pest heat damages Flight Unit. 01236_ S-10 Pest heat damages Lgt. Assault Rifle. 01242_ S-10 Pest destroyed. Map ----- +----------------------------------------------------+ | ?????????????????????????????????????????????????? | | ?????????????????????????????????????????????????? | | ?????????????????????????????????????????????????? | | ?????????????????????????????????????????????????? | | ?????????????????????????????????????????????????? | | ?????????????????????????????????????????????????? | | ?????????????????????????????????????????????????? | | ?????????????????????????????????????????????????? | | ?????????????????????????????????????????????????? | | ?????????????????????????????????????????????????? | | ?????????????????????????????????????????????????? | | ?????????????????????????????####????????????????? | | ?????????????????????????????# ????????????????? | | ?????????????????????????????# ????????????????? | | ?????????????????????????????# #????????????????? | | ?????????????????????????????# #????????????????? | | ?????????????????????????????# #????????????????? | | ?????????????????????????????# #?#####??????????? | | ????????????????????????????## ### ##?????????? | | ????????????????????????????# ###???????? | | ???????????????????????????## ###?????? | | ???????????????????????????# s ##????? | | ??????????????????????????## ss ##???? | | ?????????????????????#????# s### ###?? | | ?????????????????????# ### ##?## ##? | | ?????????????????????# @ ####???# ## | | ?????????????????????# #### ##??????# ## # | | ?????????????????????#?????####???????## #### # | | ???????????????????????????????####????###??# | | ???????????????????????????????# ?????????# | | ?????????????????????????????### #???????## | | ?????????????????????????????? ##????## | | ????????????????????????????????# #???## | | ????????????????????????????????# ##### | | ????????????????????????????????# ### | | ????????????????????????????????## ##?? | | ?????????????????????????????????###### ## #??? | | ??????????????????????????????????????# ## #??? | | ??????????????????????????????????????# ### ##??? | | ??????????????????????????????????????# #?####???? | | ??????????????????????????????????????# ###??????? | | ??????????????????????????????????????# #????? | | ??????????????????????????????????????### #???"" | | ????????????????????????????????????????# ## """ | | ????????????????????????????????????????# | | ????????????????????????????????????????#### | | ?????????????????????????????????????????????##### | | ?????????????????????????????????????????????????? | | ?????????????????????????????????????????????????? | | | +----------------------------------------------------+ Best States ------------- Heat Dissipation 28 Energy Generation 10 Energy Capacity 250 Matter Stores 300 Matter Capacity 300 Sight Range 16 Terrain Scan Range 16 Terrain Scan Density 10 ECM Strength 1 Evasion (%) 55 Item Schematics ----------------- None Robot Schematics ------------------ None Fabricated ------------ Nothing Repaired ---------- Nothing Alien Tech Used ----------------- None Achievements -------------- None Challenges ------------ None Game ------ Seed ActiveIonicTurbovents Manual? 0 Play Time 00:12:12 Cumulative 22.7 hours Start 2025.08.29 @ 16:56:45 End 2025.08.29 @ 17:07:39 Sessions 1 Manual Loads 0 Difficulty Rogue Special Mode None Game No. 39 Rogue 39 Adventurer 0 Explorer 0 Win Type - Total 0 Types 0/0/0/0/0/0/0/0/0/0 Lore% 16 Gallery% 22 Achievement% 21 Wizard Run 0 Options --------- Layout 1 ASCII 0 Keyboard 0 Movement Mouse Keybinds 0 Fullscreen 2 Font 24/Smallcaps Map View 25x17 Zoom Use 1% Tactical HUD 1 Map Filters NONE Filters NONE Steam 1 RUN: b237e16e-b889-4ede-8e03-0acd50273c1d